fUST/lending_fUST_20250606
["ID","MTS","AMOUNT","RATE_DAILY","PERIOD"]
[364698235,1749210645464,-538.18,0.00020273,2]
[364698236,1749210645474,-440.0,0.00020273,2]
[364698237,1749210645483,-440.0,0.00020273,2]
[364698238,1749210645493,-463.81,0.00020273,2]
[364698239,1749210645502,-5277.07,0.00020273,2]
[364698240,1749210645512,-430.0,0.00020273,2]
[364698241,1749210645522,-440.0,0.00020273,2]
[364698242,1749210645531,-1214.61,0.00020273,2]
[364698243,1749210645542,-440.0,0.00020273,2]
[364698244,1749210645551,-440.0,0.00020273,2]
[364698245,1749210645560,-440.0,0.00020273,2]
[364698246,1749210645569,-360.0,0.00020273,2]
[364698247,1749210645579,-440.0,0.00020273,2]
[364698248,1749210645589,-440.0,0.00020273,2]
[364698249,1749210645598,-440.0,0.00020273,2]
[364698250,1749210645608,-471.445303,0.00020273,2]
[364698251,1749210645617,-663.74,0.00020273,2]
[364698252,1749210645627,-440.0,0.00020273,2]
[364698253,1749210645636,-1147.58,0.00020273,2]
[364698254,1749210645645,-440.0,0.00020273,2]
[364698255,1749210645656,-351.81035841,0.00020273,2]
[364698256,1749210645665,-1229.29,0.00020273,2]
[364698257,1749210645675,-1136.46,0.00020273,2]
[364698258,1749210645685,-440.0,0.00020273,2]
[364698259,1749210645695,-440.0,0.00020273,2]
[364698260,1749210645705,-440.0,0.00020273,2]
[364698261,1749210645715,-440.0,0.00020273,2]
[364698262,1749210645724,-440.0,0.00020273,2]
[364698263,1749210645734,-440.0,0.00020273,2]
[364698264,1749210645743,-2572.61,0.00020273,2]
[364698265,1749210645753,-1855.34,0.00020273,2]
[364698266,1749210645762,-420.0,0.00020273,2]
[364698267,1749210645771,-420.0,0.00020273,2]
[364698268,1749210645781,-440.0,0.00020273,2]
[364698269,1749210645791,-440.0,0.00020273,2]
[364698270,1749210645800,-440.0,0.00020273,2]
[364698271,1749210645810,-440.0,0.00020273,2]
[364698272,1749210645820,-235.64708101,0.00020273,2]
[364698273,1749210645833,-440.0,0.00020273,2]
[364698274,1749210645843,-3590.3,0.00020273,2]
[364698275,1749210645853,-420.0,0.00020273,2]
[364698276,1749210645863,-440.0,0.00020273,2]
[364698277,1749210645873,-440.0,0.00020273,2]
[364698278,1749210645883,-510.12,0.00020273,2]
[364698279,1749210645894,-3155.64,0.00020273,2]
[364698280,1749210645903,-440.0,0.00020273,2]
[364698281,1749210645913,-410.0,0.00020273,2]
[364698282,1749210645924,-4169.89,0.00020273,2]
[364698283,1749210645933,-453.04,0.00020273,2]
[364698284,1749210645943,-607.09,0.00020273,2]
[364698285,1749210645954,-481.17,0.00020273,2]
[364698286,1749210645963,-440.0,0.00020273,2]
[364698287,1749210645973,-537.23,0.00020273,2]
[364698288,1749210645983,-260.55027434,0.00020299,2]
[364698289,1749210645992,-183.5675608,0.000203,3]
[364698291,1749210646002,-3228.28422978,0.00020323,2]
[364698292,1749210646012,-2264.23277371,0.00020417,3]
[364698293,1749210646022,-223.80257841,0.00020493,2]
[364698294,1749210646031,-662.37,0.00020514,2]
[364698295,1749210646041,-878.3718867,0.00020521,2]
[364698296,1749210646051,-1000.0,0.00020521,2]
[364698297,1749210646060,-1000.0,0.00020521,2]
[364698298,1749210646070,-970.40782091,0.00020521,2]
[364698299,1749210646079,-1077.1181603,0.00020521,2]
[364698300,1749210646089,-1000.0,0.00020521,2]
[364698301,1749210646098,-1000.0,0.00020521,2]
[364698302,1749210646108,-501.04020596,0.00020521,2]
[364698303,1749210646118,-1000.0,0.00020521,2]
[364698304,1749210646128,-1000.0,0.00020521,2]
[364698305,1749210646137,-1000.0,0.00020521,2]
[364698306,1749210646147,-1000.0,0.00020521,2]
[364698307,1749210646156,-500.0,0.00020547,2]
[364698308,1749210646166,-440.0,0.00020547,2]
[364698309,1749210646176,-160.0,0.00020547,2]
[364698310,1749210646185,-440.0,0.00020547,2]
[364698311,1749210646195,-440.0,0.00020547,2]
[364698312,1749210646206,-440.0,0.00020547,2]
[364698313,1749210646215,-440.0,0.00020547,2]
[364698314,1749210646225,-440.0,0.00020547,2]
[364698315,1749210646235,-440.0,0.00020547,2]
[364698316,1749210646245,-440.0,0.00020547,2]
[364698317,1749210646255,-440.0,0.00020547,2]
[364698319,1749210646265,-714.58,0.00020547,2]
[364698321,1749210646274,-440.0,0.00020547,2]
[364698323,1749210646283,-440.0,0.00020547,2]
[364698324,1749210646292,-440.0,0.00020547,2]
[364698325,1749210646303,-440.0,0.00020547,2]
[364698326,1749210646313,-720.48,0.00020547,2]
[364698327,1749210646323,-420.0,0.00020547,2]
[364698328,1749210646332,-440.0,0.00020547,2]
[364698329,1749210646343,-430.44128043,0.00020547,2]
[364698330,1749210646352,-350.0,0.00020547,2]
[364698331,1749210646362,-430.0,0.00020547,2]
[364698333,1749210646371,-1734.99,0.00020547,2]
[364698335,1749210646382,-440.0,0.00020547,2]
[364698337,1749210646391,-809.62,0.00020547,2]
[364698339,1749210646401,-830.16,0.00020547,2]
[364698341,1749210646410,-440.0,0.00020547,2]
[364698343,1749210646420,-440.0,0.00020547,2]
[364698345,1749210646428,-440.0,0.00020547,2]
[364698347,1749210646438,-440.0,0.00020547,2]
[364698349,1749210646448,-440.0,0.00020547,2]
[364698351,1749210646458,-440.0,0.00020547,2]
[364698353,1749210646468,-459.72,0.00020547,2]
[364698355,1749210646478,-747.39,0.00020547,2]
[364698356,1749210646487,-440.0,0.00020547,2]
[364698358,1749210646497,-423.63092269,0.00020547,2]
[364698360,1749210646506,-440.0,0.00020547,2]
[364698362,1749210646516,-440.0,0.00020547,2]
[364698363,1749210646526,-440.0,0.00020547,2]
[364698364,1749210646536,-3303.96,0.00020547,2]
[364698365,1749210646546,-440.0,0.00020547,2]
[364698366,1749210646555,-575.69,0.00020547,2]
[364698367,1749210646565,-440.0,0.00020547,2]
[364698368,1749210646575,-430.0,0.00020547,2]
[364698369,1749210646584,-440.0,0.00020547,2]
[364698370,1749210646594,-430.0,0.00020547,2]
[364698371,1749210646603,-525.43150531,0.00020547,2]
[364698372,1749210646613,-440.0,0.00020547,2]
[364698373,1749210646623,-1518.52,0.00020547,2]
[364698374,1749210646632,-740.79,0.00020547,2]
[364698375,1749210646641,-440.0,0.00020547,2]
[364698376,1749210646651,-442.68339239,0.00020547,2]
[364698377,1749210646660,-440.0,0.00020547,2]
[364698378,1749210646670,-445.63660537,0.00020547,2]
[364698379,1749210646679,-440.0,0.00020547,2]
[364698380,1749210646689,-440.0,0.00020547,2]
[364698381,1749210646698,-2140.7,0.00020547,2]
[364698382,1749210646708,-440.0,0.00020547,2]
[364698383,1749210646717,-323.78931813,0.00020547,2]
[364698384,1749210646726,-440.0,0.00020547,2]
[364698385,1749210646736,-992.27,0.00020547,2]
[364698386,1749210646745,-430.0,0.00020547,2]
[364698387,1749210646754,-440.0,0.00020547,2]
[364698388,1749210646765,-2399.79,0.00020547,2]
[364698389,1749210646775,-370.0,0.00020547,2]
[364698390,1749210646784,-440.0,0.00020547,2]
[364698391,1749210646793,-440.0,0.00020547,2]
[364698392,1749210646802,-440.0,0.00020547,2]
[364698393,1749210646812,-1521.46,0.00020547,2]
[364698394,1749210646821,-1228.91,0.00020547,2]
[364698395,1749210646831,-1197.98,0.00020547,2]
[364698396,1749210646840,-440.0,0.00020547,2]
[364698397,1749210646849,-440.0,0.00020547,2]
[364698398,1749210646858,-440.0,0.00020547,2]
[364698399,1749210646867,-582.08,0.00020547,2]
[364698400,1749210646877,-440.0,0.00020547,2]
[364698401,1749210646887,-369.41697352,0.00020547,2]
[364698402,1749210646896,-440.0,0.00020547,2]
[364698403,1749210646906,-515.64,0.00020547,2]
[364698404,1749210646915,-538.18,0.00020547,2]
[364698405,1749210646925,-450.08952511,0.00020547,2]
[364698406,1749210646935,-440.0,0.00020547,2]
[364698407,1749210646947,-5277.07,0.00020547,2]
[364698408,1749210646956,-440.0,0.00020547,2]
[364698409,1749210646966,-1214.61,0.00020547,2]
[364698410,1749210646975,-440.0,0.00020547,2]
[364698411,1749210646985,-440.0,0.00020547,2]
[364698412,1749210646995,-440.0,0.00020547,2]
[364698413,1749210647004,-440.0,0.00020547,2]
[364698414,1749210647013,-440.0,0.00020547,2]
[364698415,1749210647022,-440.0,0.00020547,2]
[364698416,1749210647032,-663.74,0.00020547,2]
[364698417,1749210647041,-440.0,0.00020547,2]
[364698418,1749210647050,-1147.58,0.00020547,2]
[364698419,1749210647059,-440.0,0.00020547,2]
[364698420,1749210647068,-1229.29,0.00020547,2]
[364698421,1749210647079,-1136.46,0.00020547,2]
[364698422,1749210647089,-430.0,0.00020547,2]
[364698423,1749210647099,-374.63903373,0.00020547,2]
[364698424,1749210647110,-469.0191183,0.00020547,2]
[364698425,1749210647119,-440.0,0.00020547,2]
[364698426,1749210647129,-440.0,0.00020547,2]
[364698427,1749210647138,-2572.61,0.00020547,2]
[364698428,1749210647147,-1855.34,0.00020547,2]
[364698429,1749210647156,-440.0,0.00020547,2]
[364698430,1749210647166,-440.0,0.00020547,2]
[364698431,1749210647175,-440.0,0.00020547,2]
[364698432,1749210647185,-440.0,0.00020547,2]
[364698433,1749210647194,-3590.3,0.00020547,2]
[364698434,1749210647204,-440.0,0.00020547,2]
[364698435,1749210647213,-440.0,0.00020547,2]
[364698436,1749210647223,-440.0,0.00020547,2]
[364698437,1749210647232,-510.12,0.00020547,2]
[364698438,1749210647242,-3155.64,0.00020547,2]
[364698439,1749210647251,-440.0,0.00020547,2]
[364698440,1749210647261,-4169.89,0.00020547,2]
[364698441,1749210647271,-453.04,0.00020547,2]
[364698442,1749210647280,-607.09,0.00020547,2]
[364698443,1749210647289,-481.17,0.00020547,2]
[364698444,1749210647299,-440.0,0.00020547,2]
[364698445,1749210647311,-537.23,0.00020547,2]
[364698446,1749210647321,-1100.0,0.00020583,2]
[364698447,1749210647331,-2264.23277371,0.0002059,3]
[364698448,1749210647340,-1590.7,0.000206,2]
[364698449,1749210647351,-978.94,0.000206,2]
[364698450,1749210647360,-21156.03,0.000206,2]
[364698451,1749210647370,-2264.23277371,0.00020762,3]
[364698452,1749210647380,-440.0,0.00020821,2]
[364698453,1749210647390,-217.0822292,0.00020821,2]
[364698454,1749210647400,-420.0,0.00020821,2]
[364698455,1749210647410,-420.0,0.00020821,2]
[364698456,1749210647421,-440.0,0.00020821,2]
[364698457,1749210647432,-160.70859069,0.00020821,2]
[364698458,1749210647441,-440.0,0.00020821,2]
[364698459,1749210647451,-440.0,0.00020821,2]
[364698460,1749210647461,-440.0,0.00020821,2]
[364698461,1749210647471,-714.58,0.00020821,2]
[364698462,1749210647481,-440.0,0.00020821,2]
[364698463,1749210647490,-440.0,0.00020821,2]
[364698464,1749210647499,-440.0,0.00020821,2]
[364698465,1749210647509,-338.49602136,0.00020821,2]
[364698466,1749210647518,-720.48,0.00020821,2]
[364698467,1749210647529,-440.0,0.00020821,2]
[364698468,1749210647539,-1734.99,0.00020821,2]
[364698469,1749210647549,-440.0,0.00020821,2]
[364698470,1749210647558,-809.62,0.00020821,2]
[364698471,1749210647568,-830.16,0.00020821,2]
[364698472,1749210647578,-426.88712128,0.00020821,2]
[364698473,1749210647588,-440.0,0.00020821,2]
[364698474,1749210647597,-440.0,0.00020821,2]
[364698475,1749210647608,-440.0,0.00020821,2]
[364698476,1749210647617,-410.0,0.00020821,2]
[364698477,1749210647627,-440.0,0.00020821,2]
[364698478,1749210647636,-459.72,0.00020821,2]
[364698479,1749210647646,-747.39,0.00020821,2]
[364698480,1749210647656,-440.0,0.00020821,2]
[364698481,1749210647665,-440.0,0.00020821,2]
[364698482,1749210647675,-440.0,0.00020821,2]
[364698483,1749210647685,-420.0,0.00020821,2]
[364698484,1749210647695,-3303.96,0.00020821,2]
[364698485,1749210647705,-440.0,0.00020821,2]
[364698486,1749210647715,-575.69,0.00020821,2]
[364698487,1749210647725,-440.0,0.00020821,2]
[364698488,1749210647735,-430.0,0.00020821,2]
[364698489,1749210647744,-410.0,0.00020821,2]
[364698490,1749210647754,-1518.52,0.00020821,2]
[364698491,1749210647763,-740.79,0.00020821,2]
[364698492,1749210647773,-440.0,0.00020821,2]
[364698493,1749210647783,-440.0,0.00020821,2]
[364698494,1749210647792,-440.0,0.00020821,2]
[364698495,1749210647802,-380.0,0.00020821,2]
[364698496,1749210647812,-2140.7,0.00020821,2]
[364698497,1749210647822,-410.0,0.00020821,2]
[364698498,1749210647832,-400.0,0.00020821,2]
[364698499,1749210647841,-992.27,0.00020821,2]
[364698500,1749210647851,-460.0,0.00020821,2]
[364698501,1749210647861,-2399.79,0.00020821,2]
[364698502,1749210647870,-440.0,0.00020821,2]
[364698503,1749210647880,-440.0,0.00020821,2]
[364698504,1749210647994,-440.0,0.00020821,2]
[364698505,1749210648005,-1521.46,0.00020821,2]
[364698506,1749210648015,-1228.91,0.00020821,2]
[364698507,1749210648024,-1197.98,0.00020821,2]
[364698508,1749210648034,-440.0,0.00020821,2]
[364698509,1749210648043,-440.0,0.00020821,2]
[364698510,1749210648053,-440.0,0.00020821,2]
[364698511,1749210648064,-582.08,0.00020821,2]
[364698512,1749210648073,-190.08686581,0.00020821,2]
[364698513,1749210648083,-440.0,0.00020821,2]
[364698514,1749210648092,-515.64,0.00020821,2]
[364698515,1749210648102,-538.18,0.00020821,2]
[364698516,1749210648111,-440.0,0.00020821,2]
[364698517,1749210648120,-5277.07,0.00020821,2]
[364698518,1749210648130,-440.0,0.00020821,2]
[364698519,1749210648140,-1214.61,0.00020821,2]
[364698520,1749210648150,-440.0,0.00020821,2]
[364698521,1749210648159,-440.0,0.00020821,2]
[364698522,1749210648169,-440.0,0.00020821,2]
[364698523,1749210648178,-440.0,0.00020821,2]
[364698524,1749210648187,-440.0,0.00020821,2]
[364698525,1749210648197,-440.0,0.00020821,2]
[364698526,1749210648207,-663.74,0.00020821,2]
[364698527,1749210648217,-532.31711347,0.00020821,2]
[364698528,1749210648227,-1147.58,0.00020821,2]
[364698529,1749210648236,-440.0,0.00020821,2]
[364698530,1749210648246,-1229.29,0.00020821,2]
[364698531,1749210648255,-1136.46,0.00020821,2]
[364698532,1749210648265,-440.0,0.00020821,2]
[364698533,1749210648274,-440.0,0.00020821,2]
[364698534,1749210648284,-2572.61,0.00020821,2]
[364698535,1749210648293,-1855.34,0.00020821,2]
[364698536,1749210648304,-440.0,0.00020821,2]
[364698537,1749210648314,-440.0,0.00020821,2]
[364698538,1749210648323,-440.0,0.00020821,2]
[364698539,1749210648333,-440.0,0.00020821,2]
[364698540,1749210648344,-3590.3,0.00020821,2]
[364698541,1749210648353,-440.0,0.00020821,2]
[364698542,1749210648363,-440.0,0.00020821,2]
[364698543,1749210648372,-400.0,0.00020821,2]
[364698544,1749210648384,-510.12,0.00020821,2]
[364698545,1749210648394,-3155.64,0.00020821,2]
[364698546,1749210648404,-440.0,0.00020821,2]
[364698547,1749210648414,-4169.89,0.00020821,2]
[364698548,1749210648423,-453.04,0.00020821,2]
[364698549,1749210648432,-607.09,0.00020821,2]
[364698550,1749210648442,-481.17,0.00020821,2]
[364698551,1749210648451,-440.0,0.00020821,2]
[364698552,1749210648459,-537.23,0.00020821,2]
[364698553,1749210648469,-420.0,0.00020899,2]
[364698554,1749210648478,-151.0,0.000209,3]
[364698555,1749210648487,-2264.23277371,0.00020934,4]
[364698556,1749210648496,-500.0,0.00020983,2]
[364698557,1749210648506,-500.0,0.00020983,2]
[364698558,1749210648516,-500.0,0.00020983,2]
[364698559,1749210648525,-500.0,0.00020983,2]
[364698560,1749210648536,-500.0,0.00020983,2]
[364698561,1749210648546,-579.32528194,0.00020983,2]
[364698562,1749210648555,-500.0,0.00020983,2]
[364698563,1749210648565,-500.0,0.00020983,2]
[364698564,1749210648575,-500.0,0.00020983,2]
[364698565,1749210648585,-500.89695962,0.00020983,2]
[364698566,1749210648594,-158.8455809,0.00020983,2]
[364698567,1749210648604,-500.0,0.00020983,2]
[364698568,1749210648613,-502.02936203,0.00020983,2]
[364698569,1749210648623,-500.0,0.00020983,2]
[364698570,1749210648632,-500.0,0.00020983,2]
[364698571,1749210648642,-163.87684468,0.00020983,2]
[364698572,1749210648651,-500.0,0.00020983,2]
[364698573,1749210648661,-499.52954623,0.00020983,2]
[364698574,1749210648670,-435.46151472,0.00020983,2]
[364698575,1749210648680,-500.0,0.00020983,2]
[364698576,1749210648690,-151.0,0.00021,2]
[364698577,1749210648700,-226.183426,0.00021,2]
[364698578,1749210648709,-226.183426,0.00021,2]
[364698579,1749210648719,-180.0,0.00021,3]
[364698580,1749210648728,-180.0,0.00021,3]
[364698581,1749210648738,-180.0,0.00021,3]
[364698582,1749210648747,-180.0,0.00021,3]
[364698583,1749210648757,-3228.28422978,0.00021019,2]
[364698584,1749210648766,-500.22849233,0.00021068,2]
[364698585,1749210648776,-505.08353379,0.00021068,2]
[364698586,1749210648785,-503.30721356,0.00021068,2]
[364698587,1749210648795,-1000.0,0.00021068,2]
[364698588,1749210648804,-566.07978846,0.00021068,2]
[364698589,1749210648814,-1500.0,0.00021068,2]
[364698590,1749210648823,-1503.63586101,0.00021068,2]
[364698591,1749210648833,-1091.22118864,0.00021068,2]
[364698592,1749210648842,-1500.0,0.00021068,2]
[364698593,1749210648852,-1500.0,0.00021068,2]
[364698594,1749210648861,-500.0,0.00021068,2]
[364698595,1749210648871,-500.0,0.00021085,2]
[364698596,1749210648880,-501.73765461,0.00021085,2]
[364698597,1749210648890,-159.35434729,0.00021085,2]
[364698598,1749210648900,-500.0,0.00021085,2]
[364698599,1749210648910,-500.0,0.00021085,2]
[364698600,1749210648920,-600.0,0.00021085,2]
[364698601,1749210648929,-155.0,0.00021095,2]
[364698602,1749210648939,-151.0,0.00021095,2]
[364698603,1749210648950,-551.87,0.00021095,3]
[364698604,1749210648960,-390.0,0.00021095,2]
[364698605,1749210648970,-440.0,0.00021095,2]
[364698606,1749210648980,-440.0,0.00021095,2]
[364698607,1749210648989,-440.0,0.00021095,2]
[364698608,1749210648999,-440.0,0.00021095,2]
[364698609,1749210649009,-714.58,0.00021095,2]
[364698610,1749210649018,-440.0,0.00021095,2]
[364698611,1749210649028,-440.0,0.00021095,2]
[364698612,1749210649038,-440.0,0.00021095,2]
[364698613,1749210649048,-720.48,0.00021095,2]
[364698614,1749210649058,-440.0,0.00021095,2]
[364698615,1749210649068,-1734.99,0.00021095,2]
[364698616,1749210649077,-440.0,0.00021095,2]
[364698617,1749210649087,-809.62,0.00021095,2]
[364698618,1749210649098,-830.16,0.00021095,2]
[364698619,1749210649107,-440.0,0.00021095,2]
[364698620,1749210649117,-440.0,0.00021095,2]
[364698621,1749210649127,-440.0,0.00021095,2]
[364698622,1749210649136,-448.35079593,0.00021095,2]
[364698623,1749210649146,-459.72,0.00021095,2]
[364698624,1749210649156,-747.39,0.00021095,2]
[364698625,1749210649167,-440.0,0.00021095,2]
[364698626,1749210649176,-445.05348119,0.00021095,2]
[364698627,1749210649186,-430.0,0.00021095,2]
[364698628,1749210649196,-3303.96,0.00021095,2]
[364698629,1749210649206,-410.0,0.00021095,2]
[364698630,1749210649215,-575.69,0.00021095,2]
[364698631,1749210649225,-440.0,0.00021095,2]
[364698632,1749210649235,-1518.52,0.00021095,2]
[364698633,1749210649244,-740.79,0.00021095,2]
[364698634,1749210649254,-440.0,0.00021095,2]
[364698635,1749210649264,-440.0,0.00021095,2]
[364698636,1749210649274,-440.0,0.00021095,2]
[364698637,1749210649285,-2140.7,0.00021095,2]
[364698638,1749210649295,-992.27,0.00021095,2]
[364698639,1749210649311,-2399.79,0.00021095,2]
[364698640,1749210649321,-440.0,0.00021095,2]
[364698641,1749210649331,-440.0,0.00021095,2]
[364698642,1749210649343,-440.0,0.00021095,2]
[364698643,1749210649352,-1521.46,0.00021095,2]
[364698644,1749210649362,-1228.91,0.00021095,2]
[364698645,1749210649371,-1197.98,0.00021095,2]
[364698646,1749210649383,-410.0,0.00021095,2]
[364698647,1749210649393,-440.0,0.00021095,2]
[364698648,1749210649402,-440.0,0.00021095,2]
[364698649,1749210649412,-582.08,0.00021095,2]
[364698650,1749210649422,-440.0,0.00021095,2]
[364698651,1749210649432,-515.64,0.00021095,2]
[364698652,1749210649442,-538.18,0.00021095,2]
[364698653,1749210649452,-440.0,0.00021095,2]
[364698654,1749210649462,-5277.07,0.00021095,2]
[364698655,1749210649472,-440.0,0.00021095,2]
[364698656,1749210649481,-1214.61,0.00021095,2]
[364698657,1749210649491,-440.0,0.00021095,2]
[364698658,1749210649500,-440.0,0.00021095,2]
[364698659,1749210649510,-440.0,0.00021095,2]
[364698660,1749210649519,-440.0,0.00021095,2]
[364698661,1749210649529,-236.0,0.00021095,2]
[364698662,1749210649539,-440.0,0.00021095,2]
[364698663,1749210649548,-663.74,0.00021095,2]
[364698664,1749210649558,-1147.58,0.00021095,2]
[364698665,1749210649567,-440.0,0.00021095,2]
[364698666,1749210649576,-1229.29,0.00021095,2]
[364698667,1749210649587,-1136.46,0.00021095,2]
[364698668,1749210649596,-440.0,0.00021095,2]
[364698669,1749210649606,-440.0,0.00021095,2]
[364698670,1749210649615,-2572.61,0.00021095,2]
[364698671,1749210649625,-1855.34,0.00021095,2]
[364698672,1749210649634,-440.0,0.00021095,2]
[364698673,1749210649643,-440.0,0.00021095,2]
[364698674,1749210649653,-440.0,0.00021095,2]
[364698675,1749210649662,-420.0,0.00021095,2]
[364698676,1749210649671,-3590.3,0.00021095,2]
[364698677,1749210649681,-440.0,0.00021095,2]
[364698678,1749210649691,-440.0,0.00021095,2]
[364698679,1749210649701,-510.12,0.00021095,2]
[364698680,1749210649711,-3155.64,0.00021095,2]
[364698681,1749210649721,-440.0,0.00021095,2]
[364698682,1749210649731,-4169.89,0.00021095,2]
[364698683,1749210649741,-453.04,0.00021095,2]
[364698684,1749210649750,-607.09,0.00021095,2]
[364698685,1749210649760,-481.17,0.00021095,2]
[364698686,1749210649770,-440.0,0.00021095,2]
[364698687,1749210649780,-537.23,0.00021095,2]
[364698688,1749210649790,-2264.23277371,0.00021107,4]
[364698689,1749210649800,-353.76504359,0.00021114,2]
[364698690,1749210649809,-500.0,0.00021114,2]
[364698691,1749210649819,-500.0,0.00021211,2]
[364698692,1749210649828,-2264.23277371,0.00021279,5]
[364698693,1749210649838,-500.88991676,0.00021337,2]
[364698694,1749210649847,-500.0,0.00021337,2]
[364698695,1749210649857,-500.0,0.00021337,2]
[364698696,1749210649866,-450.80050161,0.00021337,2]
[364698697,1749210649876,-440.0,0.00021369,2]
[364698698,1749210649886,-400.0,0.00021369,2]
[364698699,1749210649895,-440.0,0.00021369,2]
[364698700,1749210649905,-297.33201177,0.00021369,2]
[364698701,1749210649915,-714.58,0.00021369,2]
[364698702,1749210649924,-440.0,0.00021369,2]
[364698703,1749210649933,-440.0,0.00021369,2]
[364698704,1749210649942,-440.0,0.00021369,2]
[364698705,1749210649953,-720.48,0.00021369,2]
[364698706,1749210649963,-440.0,0.00021369,2]
[364698707,1749210649972,-1734.99,0.00021369,2]
[364698708,1749210649981,-502.40493754,0.00021369,2]
[364698709,1749210649990,-809.62,0.00021369,2]
[364698710,1749210650000,-830.16,0.00021369,2]
[364698711,1749210650010,-440.0,0.00021369,2]
[364698712,1749210650019,-440.0,0.00021369,2]
[364698713,1749210650029,-189.6935917,0.00021369,2]
[364698714,1749210650039,-459.72,0.00021369,2]
[364698715,1749210650048,-747.39,0.00021369,2]
[364698716,1749210650058,-440.0,0.00021369,2]
[364698717,1749210650068,-3303.96,0.00021369,2]
[364698718,1749210650077,-575.69,0.00021369,2]
[364698719,1749210650086,-440.0,0.00021369,2]
[364698720,1749210650095,-1518.52,0.00021369,2]
[364698721,1749210650105,-740.79,0.00021369,2]
[364698722,1749210650114,-440.0,0.00021369,2]
[364698723,1749210650124,-440.0,0.00021369,2]
[364698724,1749210650133,-440.0,0.00021369,2]
[364698725,1749210650143,-2140.7,0.00021369,2]
[364698726,1749210650153,-992.27,0.00021369,2]
[364698727,1749210650162,-2399.79,0.00021369,2]
[364698728,1749210650172,-174.94,0.00021369,2]
[364698729,1749210650181,-400.0,0.00021369,2]
[364698730,1749210650190,-553.02800191,0.00021369,2]
[364698731,1749210650199,-1521.46,0.00021369,2]
[364698732,1749210650208,-1228.91,0.00021369,2]
[364698733,1749210650218,-1197.98,0.00021369,2]
[364698734,1749210650227,-440.0,0.00021369,2]
[364698735,1749210650236,-390.0,0.00021369,2]
[364698736,1749210650246,-582.08,0.00021369,2]
[364698737,1749210650255,-440.0,0.00021369,2]
[364698738,1749210650264,-515.64,0.00021369,2]
[364698739,1749210650273,-538.18,0.00021369,2]
[364698740,1749210650283,-440.0,0.00021369,2]
[364698741,1749210650293,-5277.07,0.00021369,2]
[364698742,1749210650303,-440.0,0.00021369,2]
[364698743,1749210650313,-1214.61,0.00021369,2]
[364698744,1749210650323,-440.0,0.00021369,2]
[364698745,1749210650332,-440.0,0.00021369,2]
[364698746,1749210650342,-440.0,0.00021369,2]
[364698747,1749210650351,-440.0,0.00021369,2]
[364698748,1749210650360,-440.0,0.00021369,2]
[364698749,1749210650369,-663.74,0.00021369,2]
[364698750,1749210650378,-1147.58,0.00021369,2]
[364698751,1749210650388,-440.0,0.00021369,2]
[364698752,1749210650398,-1229.29,0.00021369,2]
[364698753,1749210650407,-1136.46,0.00021369,2]